fUST/lending_fUST_20240422
["ID","MTS","AMOUNT","RATE_DAILY","PERIOD"]
[323154188,1713731441684,-500.0,0.00024826,2]
[323154189,1713731441694,-193.25659406,0.00024826,2]
[323154191,1713731441704,-93959.04,0.00024827,3]
[323154192,1713731441714,-151.0,0.00024858,2]
[323154193,1713731441725,-151.0,0.00024858,2]
[323154194,1713731441735,-151.0,0.00024868,2]
[323154195,1713731441745,-151.0,0.00024868,2]
[323154197,1713731441755,-151.0,0.00024879,2]
[323154199,1713731441764,-151.0,0.00024889,2]
[323154200,1713731441774,-267.34543498,0.00024898,2]
[323154201,1713731441784,-151.0,0.00024899,2]
[323154203,1713731441793,-151.0,0.00024909,2]
[323154205,1713731441802,-151.0,0.00024909,2]
[323154206,1713731441811,-151.0,0.00024909,2]
[323154208,1713731441820,-151.0,0.00024909,2]
[323154210,1713731441832,-151.0,0.00024919,2]
[323154211,1713731441842,-151.0,0.00024919,2]
[323154212,1713731441852,-151.0,0.00024919,2]
[323154213,1713731441861,-151.0,0.00024919,2]
[323154214,1713731441872,-151.0,0.00024919,2]
[323154215,1713731441883,-151.0,0.00024919,2]
[323154216,1713731441894,-151.0,0.0002492,2]
[323154217,1713731441903,-151.0,0.0002492,2]
[323154218,1713731441914,-151.0,0.0002493,2]
[323154219,1713731441923,-151.0,0.0002493,2]
[323154220,1713731441934,-151.0,0.0002494,2]
[323154221,1713731441946,-151.0,0.0002495,2]
[323154222,1713731441956,-151.0,0.0002495,2]
[323154223,1713731441965,-151.0,0.0002496,2]
[323154224,1713731441974,-151.0,0.0002497,2]
[323154225,1713731441983,-151.0,0.0002497,2]
[323154226,1713731441992,-151.0,0.0002497,2]
[323154227,1713731442001,-151.0,0.0002498,2]
[323154228,1713731442010,-151.0,0.0002498,2]
[323154229,1713731442019,-151.0,0.0002498,2]
[323154230,1713731442028,-151.0,0.0002498,2]
[323154231,1713731442038,-151.0,0.0002498,2]
[323154232,1713731442047,-151.0,0.0002498,2]
[323154233,1713731442056,-151.0,0.0002498,2]
[323154234,1713731442065,-151.0,0.0002498,2]
[323154235,1713731442075,-151.0,0.0002498,2]
[323154236,1713731442084,-151.0,0.0002499,2]
[323154237,1713731442093,-151.0,0.0002499,2]
[323154238,1713731442102,-151.0,0.0002499,2]
[323154239,1713731442113,-151.0,0.0002499,2]
[323154240,1713731442122,-151.0,0.0002499,2]
[323154241,1713731442133,-281.550754,0.0002499,2]
[323154242,1713731442143,-221.539064,0.0002499,2]
[323154243,1713731442152,-150.0,0.0002499,5]
[323154244,1713731442163,-1193.90227604,0.00024998,2]
[323154245,1713731442173,-633.19775205,0.00024998,2]
[323154246,1713731442183,-258.283752,0.00024998,2]
[323154247,1713731442192,-164.01363926,0.00024999,2]
[323154248,1713731442202,-300.0,0.00025,2]
[323154249,1713731442211,-300.0,0.00025,2]
[323154250,1713731442220,-300.0,0.00025,2]
[323154251,1713731442230,-300.0,0.00025,2]
[323154252,1713731442239,-300.0,0.00025,2]
[323154253,1713731442249,-300.0,0.00025,2]
[323154254,1713731442258,-300.0,0.00025,2]
[323154255,1713731442267,-300.0,0.00025,2]
[323154256,1713731442276,-401.1,0.00025,2]
[323154257,1713731442285,-401.099999,0.00025,2]
[323154258,1713731442294,-157.20645541,0.00025,2]
[323154259,1713731442304,-1000.0,0.00025,2]
[323154260,1713731442313,-282.0,0.00025,2]
[323154261,1713731442322,-151.0,0.00025,2]
[323154262,1713731442331,-151.0,0.00025,2]
[323154263,1713731442340,-151.0,0.00025,2]
[323154264,1713731442350,-151.0,0.00025,2]
[323154265,1713731442359,-151.0,0.00025,2]
[323154266,1713731442368,-151.0,0.00025,2]
[323154267,1713731442381,-400.4,0.00025,2]
[323154268,1713731442390,-300.0,0.00025,2]
[323154269,1713731442399,-300.0,0.00025,2]
[323154270,1713731442408,-151.0,0.00025,2]
[323154271,1713731442540,-151.0,0.00025,2]
[323154272,1713731442549,-151.0,0.00025,2]
[323154273,1713731442558,-151.0,0.00025,2]
[323154274,1713731442567,-151.0,0.00025,2]
[323154275,1713731442577,-151.0,0.00025,2]
[323154276,1713731442586,-176.156675,0.00025,2]
[323154277,1713731442595,-151.0,0.00025,2]
[323154278,1713731442604,-151.0,0.00025,2]
[323154279,1713731442614,-151.0,0.00025,2]
[323154280,1713731442622,-170.0,0.00025002,2]
[323154281,1713731442632,-151.0,0.00025359,2]
[323154282,1713731442641,-246.544501,0.00025359,2]
[323154283,1713731442650,-151.0,0.00025459,2]
[323154284,1713731442659,-300.0,0.000255,2]
[323154285,1713731442668,-587.0,0.00025575,2]
[323154286,1713731442677,-154.20949434,0.00025743,2]
[323154287,1713731442687,-298.7972773,0.00025771,2]
[323154288,1713731442696,-209.38677837,0.00025786,3]
[323154289,1713731442704,-298.7972773,0.0002579,2]
[323154290,1713731442713,-306.0,0.00025869,2]
[323154291,1713731442722,-455.7699159,0.00025869,2]
[323154292,1713731442732,-153.0,0.00025869,2]
[323154293,1713731442741,-203.4958838,0.00025869,2]
[323154294,1713731442751,-203.4958838,0.00025869,2]
[323154295,1713731442760,-153.0,0.00025869,2]
[323154296,1713731442769,-455.6951423,0.00025869,2]
[323154297,1713731442778,-153.0,0.00025869,2]
[323154298,1713731442789,-153.0,0.00025869,2]
[323154299,1713731442799,-203.4958838,0.00025869,2]
[323154300,1713731442809,-203.4958838,0.00025869,2]
[323154301,1713731442820,-153.0,0.00025869,2]
[323154302,1713731442830,-247.6033986,0.00025869,2]
[323154303,1713731442839,-466.04293504,0.00025962,2]
[323154304,1713731442852,-235.93437582,0.00025999,7]
[323154305,1713731442861,-300.0,0.00026,2]
[323154306,1713731442870,-2015.37937,0.00026,2]
[323154307,1713731442879,-1141.0,0.00026,2]
[323154308,1713731442889,-1141.0,0.00026,2]
[323154309,1713731442898,-1141.0,0.00026,2]
[323154310,1713731442907,-2000.0,0.00026,2]
[323154311,1713731442916,-300.0,0.00026,2]
[323154312,1713731442926,-298.7972773,0.00026065,2]
[323154313,1713731442935,-203.89219588,0.00026066,2]
[323154314,1713731442944,-466.04293504,0.00026087,2]
[323154315,1713731442953,-298.7972773,0.00026107,2]
[323154316,1713731442962,-154.20949434,0.00026122,2]
[323154317,1713731442971,-2088.16867353,0.00026269,2]
[323154318,1713731442981,-203.89219588,0.00026312,2]
[323154319,1713731442991,-184.41788622,0.00026374,2]
[323154320,1713731443000,-298.7972773,0.00026457,2]
[323154321,1713731443009,-298.7972773,0.00026485,2]
[323154322,1713731443018,-300.0,0.000265,2]
[323154323,1713731443028,-883.09222158,0.00026502,2]
[323154324,1713731443037,-2088.16867353,0.00026527,2]
[323154325,1713731443047,-14910.89977564,0.000266,2]
[323154372,1713731443766,-1636.717955,0.00024554,2]
[323154373,1713731443775,-1636.717955,0.00024554,2]
[323154374,1713731443784,-1636.717955,0.00024555,2]
[323154375,1713731443793,-1549.546135,0.00024556,2]
[323154376,1713731443805,-87.17182,0.00024556,2]
[323154377,1713731443814,-1485.42520312,0.00024898,2]
[323154404,1713732147429,-1000.0,0.000268,120]
[323154405,1713732150241,-1000.0,0.000268,120]
[323154406,1713732151754,-1000.0,0.000268,120]
[323154407,1713732153257,-1000.0,0.000268,120]
[323154408,1713732155811,-1000.0,0.000268,120]
[323154409,1713732157312,-1000.0,0.000268,120]
[323154410,1713732159581,-371.66478302,0.000268,120]
[323154411,1713732159608,-628.33521698,0.000268,120]
[323154412,1713732161083,-1000.0,0.000268,120]
[323154413,1713732162435,-1000.0,0.000268,120]
[323154414,1713732163836,-1000.0,0.000268,120]
[323154415,1713732165671,-1000.0,0.000268,120]
[323154416,1713732167114,-1000.0,0.000268,120]
[323154417,1713732211471,-1000.0,0.000268,120]
[323154418,1713732213125,-1000.0,0.000268,120]
[323154419,1713732214429,-1000.0,0.000268,120]
[323154420,1713732262758,-1000.0,0.000268,120]
[323154460,1713732632569,-1676.83616858,0.00023034,2]
[323154461,1713732632579,-654.6922453,0.00023035,2]
[323154462,1713732632589,-3130.01789446,0.00023134,7]
[323154463,1713732632598,-344.2532532,0.0002329,5]
[323154464,1713732632608,-417.0,0.00023736,2]
[323154465,1713732632617,-16397.64626092,0.000245,2]
[323154466,1713732632626,-300.0,0.00024999,2]
[323154467,1713732632635,-300.0,0.00025,2]
[323154468,1713732632644,-300.0,0.00025,2]
[323154469,1713732632653,-300.599999,0.00025,2]
[323154470,1713732632662,-300.0,0.00025,2]
[323154471,1713732632671,-300.0,0.00025,2]
[323154472,1713732632680,-300.0,0.00025,2]
[323154473,1713732632689,-401.1,0.00025,2]
[323154474,1713732632698,-157.20645541,0.00025,2]
[323154475,1713732632707,-300.0,0.000255,2]
[323154476,1713732632717,-676.0,0.000257,2]
[323154477,1713732632726,-434.97340604,0.00025722,2]
[323154478,1713732632735,-178.27062334,0.00025731,2]
[323154479,1713732632747,-1948.95742863,0.00025752,2]
[323154480,1713732632757,-434.97340604,0.00025807,2]
[323154481,1713732632766,-1948.95742863,0.00025824,2]
[323154482,1713732632775,-434.97340604,0.00025836,2]
[323154483,1713732632785,-239.03782184,0.00025905,2]
[323154484,1713732632794,-180.99188609,0.00025921,2]
[323154485,1713732632803,-300.0,0.00026,2]
[323154486,1713732632812,-1141.0,0.00026,2]
[323154487,1713732632822,-1141.0,0.00026,2]
[323154488,1713732632833,-178.27062334,0.00026054,2]
[323154489,1713732632842,-239.03782184,0.00026168,2]
[323154490,1713732632852,-1948.95742863,0.00026171,2]
[323154491,1713732632861,-1948.95742863,0.00026186,2]
[323154492,1713732632870,-154.20949435,0.00026305,2]
[323154493,1713732632880,-1948.95742863,0.00026324,2]
[323154494,1713732632890,-154.20949435,0.0002636,2]
[323154495,1713732632899,-178.27062334,0.00026397,2]
[323154496,1713732632909,-154.20949435,0.00026476,2]
[323154497,1713732632918,-300.0,0.000265,2]
[323154498,1713732632927,-360.6176588,0.0002657,60]
[323154499,1713732632936,-3501.19416903,0.00026571,2]
[323154500,1713732632948,-275.16174657,0.00026571,2]
[323154625,1713732882098,4887.94110199,0.00025,30]
[323154772,1713733840498,-2563.81087327,0.00023028,7]
[323154773,1713733840509,-566.20702119,0.00023028,7]
[323154774,1713733840518,-5000.0,0.00023029,2]
[323154775,1713733840528,-417.0,0.00023736,2]
[323154776,1713733840537,-300.0,0.00024998,2]
[323154777,1713733840545,-4452.90488375,0.00024999,2]
[323154853,1713733843273,-495.22789991,0.00024999,2]
[323154997,1713735032395,-1513.78651647,0.00021755,2]
[323154999,1713735032408,-1361.80740877,0.00021755,2]
[323155001,1713735032419,-2016.47502924,0.00021755,2]
[323155003,1713735032433,-2971.80940019,0.00021755,2]
[323155005,1713735032447,-1505.39076114,0.00021756,7]
[323155130,1713735038305,-1624.62713332,0.00021756,7]
[323155133,1713735038314,-4517.43,0.00021757,2]
[323155135,1713735038324,-163.140312,0.00021975,2]
[323155138,1713735038333,-300.0,0.00021975,2]
[323155141,1713735038342,-300.0,0.00021975,2]
[323155144,1713735038351,-177.03352242,0.00022899,2]
[323155147,1713735038361,-420.0,0.00024173,2]
[323155151,1713735038370,-150.87929656,0.00024692,2]
[323155155,1713735038379,-153.0,0.00024978,2]
[323155158,1713735038390,-183.73588792,0.00024997,2]
[323155161,1713735038398,-158.99683336,0.00024998,2]
[323155165,1713735038407,-209.29034303,0.00024999,2]
[323155169,1713735038416,-190.59421542,0.00024999,2]
[323155172,1713735038426,-4238.83707585,0.00024999,10]
[323155176,1713735038435,-300.0,0.00025,2]
[323155180,1713735038444,-300.0,0.00025,2]
[323155183,1713735038453,-300.0,0.00025,2]
[323155186,1713735038462,-401.1,0.00025,2]
[323155188,1713735038471,-5411.19546341,0.00025,7]
[323155191,1713735038480,-15573.46807468,0.00025,2]
[323155192,1713735038489,-157.20645541,0.00025,2]
[323155193,1713735038498,-1092.77978321,0.00025,2]
[323155195,1713735038508,-153.0,0.00025,2]
[323155196,1713735038517,-153.0,0.00025,2]
[323155197,1713735038527,-153.0,0.00025,2]
[323155198,1713735038536,-153.0,0.00025,2]
[323155199,1713735038546,-153.0,0.00025,2]
[323155200,1713735038555,-153.0,0.00025,2]
[323155201,1713735038564,-153.0,0.00025178,2]
[323155202,1713735038573,-153.0,0.00025425,2]
[323155203,1713735038582,-153.0,0.00025425,2]
[323155204,1713735038591,-153.0,0.00025425,2]
[323155205,1713735038600,-153.0,0.00025425,2]
[323155206,1713735038609,-153.0,0.00025425,2]
[323155207,1713735038618,-153.0,0.00025425,2]
[323155208,1713735038631,-153.0,0.00025425,2]
[323155209,1713735038642,-153.0,0.00025425,2]
[323155210,1713735038651,-371.97038,0.00025479,2]
[323155211,1713735038660,-300.0,0.000255,2]
[323155212,1713735038670,-153.0,0.000255,2]
[323155213,1713735038679,-391.47606544,0.00025701,2]
[323155214,1713735038688,-1676.83616858,0.00025704,2]
[323155215,1713735038697,-160.44356101,0.00025716,2]
[323155216,1713735038708,-190.29938282,0.00025866,2]
[323155217,1713735038717,-391.47606544,0.00025906,2]
[323155218,1713735038726,-1624.13119052,0.00025911,2]
[323155219,1713735038735,-154.20949435,0.00025931,2]
[323155220,1713735038743,-223.10196705,0.00025947,2]
[323155221,1713735038752,-1141.0,0.00026,2]
[323155222,1713735038761,-391.47606544,0.00026016,2]
[323155223,1713735038771,-190.29938282,0.0002602,2]
[323155224,1713735038780,-391.47606544,0.00026049,2]
[323155225,1713735038789,-1624.13119052,0.0002616,2]
[323155226,1713735038798,-190.29938282,0.0002629,2]
[323155227,1713735038807,-190.29938282,0.00026313,2]
[323155228,1713735038816,-1624.13119052,0.00026448,2]
[323155229,1713735038824,-225.48690509,0.00026472,2]
[323155230,1713735038833,-150.0,0.00026499,2]
[323155231,1713735038841,-300.0,0.000265,2]
[323155232,1713735038850,-234.38072599,0.0002657,2]
[323155233,1713735038859,-24000.90096399,0.00026571,2]
[323155234,1713735038867,-225.48690507,0.00026571,2]
[323155235,1713735038876,-798.64239561,0.00026571,2]
[323155236,1713735038886,-587.0,0.0002659,2]
[323155237,1713735038895,-161.0277191,0.00026598,2]
[323155238,1713735038904,-155.14665776,0.00026599,2]
[323155239,1713735038914,-177.0,0.000266,2]
[323155240,1713735038923,-1624.13119052,0.00026623,2]
[323155241,1713735038933,-160.44356101,0.00026635,2]
[323155242,1713735038943,-672.76013904,0.00026664,2]
[323155243,1713735038953,-225.48690507,0.00026671,2]
[323155244,1713735038962,-160.44356101,0.00026724,2]
[323155245,1713735038971,-225.48690507,0.0002677,2]
[323155246,1713735038980,-538.67989094,0.00026798,4]
[323155247,1713735038990,-371.66478302,0.000268,120]
[323155248,1713735039000,-469.01606179,0.000268,2]
[323155249,1713735039012,-1983.44342408,0.000268,2]
[323155250,1713735039021,-223.10196705,0.00026819,2]
[323155251,1713735039031,-19842.581539,0.00026839,3]
[323155269,1713735040436,-25469.448461,0.00026839,3]
[323155270,1713735040446,-190.29938282,0.00026842,2]
[323155271,1713735040456,-562.5973803,0.00026848,2]
[323155272,1713735040465,-259.79529178,0.00026848,2]
[323155273,1713735040475,-528.88152707,0.00026848,2]
[323155274,1713735040484,-162.231607,0.00026849,2]
[323155280,1713735040493,-198.473066,0.00026849,2]
[323155281,1713735040628,-198.473066,0.00026849,2]
[323155282,1713735040639,-151.0,0.00026849,2]
[323155283,1713735040649,-36023.97337552,0.00026849,3]
[323155326,1713735043400,-151.0,0.00026859,2]
[323155327,1713735043409,-151.0,0.00026859,2]
[323155328,1713735043418,-100.48721866,0.00026859,2]
[323155440,1713736232413,-876.58072311,0.00023491,2]
[323155442,1713736232425,-2327.26405366,0.00023491,2]
[323155444,1713736232434,-138.40280665,0.00023492,2]
[323155528,1713736238642,-550.7864976,0.00023492,2]
[323155530,1713736238651,-2109.53636017,0.00023493,7]
[323155535,1713736238688,-1020.48153429,0.00023493,7]
[323155538,1713736238700,-200.0,0.00023508,2]
[323155541,1713736238709,-150.8642222,0.0002384,7]
[323155544,1713736238719,-300.0,0.00024172,2]
[323155546,1713736238729,-6566.44888434,0.00024173,2]
[323155549,1713736238738,-150.8642222,0.00024327,4]
[323155551,1713736238747,-12476.01358992,0.0002451,2]
[323155638,1713736240661,-3436.16469074,0.0002451,2]
[323155640,1713736240673,-1431.58436728,0.0002451,2]
[323155642,1713736240685,-3699.76211743,0.0002451,2]
[323155768,1713736243566,-1106.66182563,0.0002451,2]
[323155769,1713736243576,-417.0,0.00024622,2]
[323155770,1713736243585,-150.0,0.00024749,2]
[323155771,1713736243595,-150.8642222,0.00024823,2]
[323155772,1713736243605,-299.8,0.00025,2]
[323155773,1713736243615,-157.20645541,0.00025,2]
[323155774,1713736243624,-300.0,0.000255,2]
[323155775,1713736243633,-154.86062544,0.0002552,2]
[323155776,1713736243642,-621.01854807,0.00025615,2]
[323155777,1713736243652,-1407.58036512,0.00025761,2]
[323155778,1713736243661,-339.27925671,0.00025772,2]
[323155779,1713736243670,-158.58281902,0.0002585,2]
[323155780,1713736243680,-339.27925671,0.00025956,2]
[323155781,1713736243689,-378.0,0.00026,2]
[323155782,1713736243698,-158.58281902,0.00026028,2]
[323155783,1713736243707,-339.27925671,0.00026039,2]
[323155784,1713736243716,-154.71343383,0.00026139,2]
[323155785,1713736243726,-1441.26371739,0.000262,2]
[323155786,1713736243763,-5141.03278221,0.000262,2]
[323155787,1713736243772,-208.22850258,0.000262,2]
[323155788,1713736243781,-1407.58036512,0.00026231,2]
[323155789,1713736243790,-339.27925671,0.00026241,2]
[323155790,1713736243800,-208.97619609,0.00026268,2]
[323155791,1713736243810,-36756.26499092,0.00026284,2]
[323155792,1713736243819,-154.71343383,0.00026302,2]
[323155793,1713736243829,-1407.58036512,0.00026439,2]
[323155794,1713736243839,-158.58281902,0.00026456,2]
[323155795,1713736243848,-154.20949435,0.00026461,2]
[323155796,1713736243856,-208.22850258,0.00026472,2]
[323155797,1713736243868,-158.58281902,0.00026481,2]
[323155798,1713736243877,-300.0,0.000265,2]
[323155799,1713736243887,-154.71343383,0.00026524,2]
[323155800,1713736243898,-208.22850258,0.00026539,2]
[323155801,1713736243908,-1407.58036512,0.00026555,2]
[323155802,1713736243917,-208.22850258,0.00026564,2]
[323155803,1713736243926,-420.0,0.00026589,2]
[323155804,1713736243935,-339.27925671,0.00026668,2]
[323155805,1713736243944,-193.6537571,0.00026691,2]
[323155806,1713736243953,-339.27925671,0.00026698,2]
[323155807,1713736243963,-158.58281902,0.00026748,2]
[323155808,1713736243972,-151.0,0.00026749,2]
[323155809,1713736243983,-33483.45778943,0.00026749,3]
[323155817,1713736246543,-3524.99531072,0.00026199,2]
[323155818,1713736246552,-178.62576,0.00026759,2]
[323155819,1713736246562,-178.62576,0.00026759,2]
[323155820,1713736246571,-151.0,0.00026759,2]
[323155821,1713736246580,-552.62853178,0.00026768,2]
[323155822,1713736246589,-423.13568436,0.00026768,2]
[323155823,1713736246598,-178.62576,0.00026769,2]
[323155824,1713736246607,-178.62576,0.00026769,2]
[323155825,1713736246616,-151.0,0.00026769,2]
[323155826,1713736246625,-151.0,0.00026779,2]
[323155827,1713736246634,-1042.856241,0.00026779,2]
[323155828,1713736246643,-1042.856241,0.00026779,2]
[323155829,1713736246652,-609.136265,0.00026779,2]
[323155830,1713736246662,-609.136265,0.00026779,2]
[323155831,1713736246671,-3729.332092,0.00026779,2]
[323155832,1713736246681,-3729.332092,0.00026779,2]
[323155833,1713736246691,-675.340181,0.00026779,2]
[323155834,1713736246700,-675.340181,0.00026779,2]
[323155835,1713736246709,-258.254358,0.00026779,2]
[323155836,1713736246719,-258.254358,0.00026779,2]
[323155837,1713736246728,-178.62576,0.00026779,2]
[323155838,1713736246738,-178.62576,0.00026779,2]
[323155839,1713736246747,-151.0,0.00026779,2]
[323155840,1713736246756,-151.0,0.00026779,2]
[323155841,1713736246766,-421.55404185,0.00026779,2]
[323155849,1713736483066,18402.55782208,0.00025,30]
[323155858,1713736703570,500.0,0.00025859,120]
[323155859,1713736703723,500.0,0.00025859,120]
[323155860,1713736704401,500.0,0.00025859,120]
[323155861,1713736704474,500.0,0.00025859,120]
[323155862,1713736705144,500.0,0.00025859,120]
[323155863,1713736705219,500.0,0.00025859,120]
[323155864,1713736705907,500.0,0.00025859,120]
[323155865,1713736705961,500.0,0.00025859,120]
[323155866,1713736706654,500.0,0.00025859,120]
[323155867,1713736706710,500.0,0.00025859,120]
[323155868,1713736707395,412.59,0.00025859,120]
[323155869,1713736707453,500.0,0.00025859,120]
[323155870,1713736708206,500.0,0.00025859,120]
[323155871,1713736708977,500.0,0.00025859,120]
[323155872,1713736709984,500.0,0.00025859,120]
[323155873,1713736710490,500.0,0.00025859,120]
[323155874,1713736711669,500.0,0.00025859,120]
[323155875,1713736712047,500.0,0.00025859,120]
[323155876,1713736712791,500.0,0.00025859,120]
[323155877,1713736713567,500.0,0.00025859,120]
[323155878,1713736714324,500.0,0.00025859,120]
[323155879,1713736715072,500.0,0.00025859,120]
[323155880,1713736715832,500.0,0.00025859,120]
[323155881,1713736716605,500.0,0.00025859,120]
[323155882,1713736717378,500.0,0.00025859,120]
[323155883,1713736718123,500.0,0.00025859,120]
[323155884,1713736718867,500.0,0.00025859,120]
[323155885,1713736719621,500.0,0.00025859,120]
[323155886,1713736720370,500.0,0.00025859,120]
[323155887,1713736721127,500.0,0.00025859,120]
[323155888,1713736721871,500.0,0.00025859,120]
[323155889,1713736722624,500.0,0.00025859,120]
[323155891,1713736723546,500.0,0.00025859,120]
[323155892,1713736724116,500.0,0.00025859,120]
[323155893,1713736724865,500.0,0.00025859,120]
[323155894,1713736725626,500.0,0.00025859,120]
[323155895,1713736726446,500.0,0.00025859,120]
[323155897,1713736727193,500.0,0.00025859,120]
[323155898,1713736727954,500.0,0.00025859,120]
[323155899,1713736728730,500.0,0.00025859,120]
[323155900,1713736729473,500.0,0.00025859,120]
[323155901,1713736730237,500.0,0.00025859,120]
[323155902,1713736731000,500.0,0.00025859,120]
[323155903,1713736731778,500.0,0.00025859,120]
[323155904,1713736732518,500.0,0.00025859,120]
[323155905,1713736733265,500.0,0.00025859,120]
[323155906,1713736734007,500.0,0.00025859,120]
[323155907,1713736734743,500.0,0.00025859,120]
[323155908,1713736737051,500.0,0.00025859,120]
[323155909,1713736737806,500.0,0.00025859,120]
[323155910,1713736738556,500.0,0.00025859,120]
[323155911,1713736739321,500.0,0.00025859,120]
[323155912,1713736740104,500.0,0.00025859,120]
[323155913,1713736740991,500.0,0.00025859,120]
[323155914,1713736741619,500.0,0.00025859,120]
[323155915,1713736742424,500.0,0.00025859,120]
[323155916,1713736743184,500.0,0.00025859,120]
[323155917,1713736743924,500.0,0.00025859,120]
[323155918,1713736744675,500.0,0.00025859,120]
[323155920,1713736745453,500.0,0.00025859,120]
[323155921,1713736747306,500.0,0.00025859,120]
[323155923,1713736748070,500.0,0.00025859,120]
[323155924,1713736748831,500.0,0.00025859,120]
[323155925,1713736749574,500.0,0.00025859,120]
[323155926,1713736750318,500.0,0.00025859,120]
[323155927,1713736751280,500.0,0.00025859,120]
[323155928,1713736751822,500.0,0.00025859,120]
[323155929,1713736752581,500.0,0.00025859,120]
[323155930,1713736753386,500.0,0.00025859,120]
[323155931,1713736754144,500.0,0.00025859,120]
[323155933,1713736754904,500.0,0.00025859,120]
[323155934,1713736755684,500.0,0.00025859,120]
[323155935,1713736756441,500.0,0.00025859,120]
[323155936,1713736757199,500.0,0.00025859,120]
[323155937,1713736757954,500.0,0.00025859,120]
[323155938,1713736758724,500.0,0.00025859,120]
[323155939,1713736759476,500.0,0.00025859,120]
[323155940,1713736760251,204.42,0.00025859,120]
[323156000,1713737432627,-1008.66608802,0.00022999,7]
[323156030,1713737438688,-2121.35180644,0.00022999,7]
[323156032,1713737438700,-150.0,0.00023759,2]
[323156033,1713737438710,-417.0,0.00024622,2]
[323156035,1713737438720,-157.20645541,0.00025,2]
[323156036,1713737438729,-299.8,0.000255,2]
[323156038,1713737438739,-154.20949435,0.00025708,2]
[323156039,1713737438748,-152.48347983,0.00025716,2]
[323156041,1713737438758,-155.61947958,0.00025752,2]
[323156043,1713737438768,-154.20949435,0.00025758,2]
[323156044,1713737438777,-1219.9029831,0.0002581,2]
[323156046,1713737438787,-154.20949435,0.00025834,2]
[323156047,1713737438797,-300.0,0.00025858,2]
[323156048,1713737438807,-154.86062544,0.00025859,2]
[323156049,1713737438816,-20000.75080333,0.00025859,2]
[323156050,1713737438830,-180.46470224,0.00026001,2]
[323156051,1713737438839,-1219.9029831,0.00026002,2]
[323156052,1713737438848,-271.42340537,0.00026092,2]
[323156053,1713737438857,-1219.9029831,0.00026174,2]
[323156054,1713737438867,-155.61947958,0.00026267,2]
[323156055,1713737438876,-154.20949435,0.00026268,2]
[323156056,1713737438885,-180.46470224,0.00026417,2]
[323156057,1713737438895,-152.48347983,0.00026421,2]
[323156058,1713737438904,-271.42340537,0.00026424,2]
[323156059,1713737438914,-152.48347983,0.00026438,2]
[323156060,1713737438923,-180.46470224,0.00026476,2]
[323156061,1713737438932,-1219.9029831,0.00026485,2]
[323156062,1713737438941,-300.0,0.000265,2]
[323156063,1713737438951,-180.46470224,0.00026553,2]
[323156064,1713737438960,-152.48347983,0.00026558,2]
[323156065,1713737438969,-152.48347983,0.00026749,2]
[323156066,1713737438978,-208.97619608,0.00026749,2]
[323156067,1713737438987,-3501.19416903,0.0002675,2]
[323156068,1713737438996,-1014.05352873,0.00026777,2]
[323156069,1713737439006,-360.6176588,0.00026777,60]
[323156070,1713737439015,-270.7025321,0.00026778,2]
[323156071,1713737439024,-196.01964895,0.00026779,2]
[323156072,1713737439033,-1219.9029831,0.00026786,2]
[323156073,1713737439042,-4114.8754052,0.00026798,2]